[Event "Titled Tuesday Blitz August 22 Late 2023"]
[White "Chemin, Justo Reinaldo"]
[Black "Carroll, Thomas"]
[WhiteFideId "2101580"]
[BlackFideId "450111"]
[WhiteElo "2293"]
[BlackElo "2412"]
[Result "1/2-1/2"]
[Round "11"]
[TimeControl "180+1"]
[Date "2023.08.22"]
[WhiteClock "0:00:20"]
[BlackClock "0:00:10"]
[Board "93"]

1. e4 {[%clk 0:03:00]}  e6 {[%clk 0:03:00]} 2. Nc3 {[%clk 0:02:59]}  d5 {[%clk 0:02:59]} 3. Nf3 {[%clk 0:02:55]}  dxe4 {[%clk 0:02:55]} 4. Nxe4 {[%clk 0:02:54]}  Bd7 {[%clk 0:02:56]} 5. d4 {[%clk 0:02:52]}  Bc6 {[%clk 0:02:56]} 6. Bd3 {[%clk 0:02:45]}  Nd7 {[%clk 0:02:56]} 7. Qe2 {[%clk 0:02:43]}  Ngf6 {[%clk 0:02:56]} 8. c3 {[%clk 0:02:43]}  Nxe4 {[%clk 0:02:50]} 9. Bxe4 {[%clk 0:02:42]}  Bxe4 {[%clk 0:02:50]} 10. Qxe4 {[%clk 0:02:42]}  c6 {[%clk 0:02:51]} 11. Bg5 {[%clk 0:02:32]}  Be7 {[%clk 0:02:46]} 12. Bxe7 {[%clk 0:02:29]}  Qxe7 {[%clk 0:02:47]} 13. O-O {[%clk 0:02:26]}  O-O {[%clk 0:02:46]} 14. Rfe1 {[%clk 0:02:25]}  Nf6 {[%clk 0:02:47]} 15. Qe2 {[%clk 0:02:22]}  c5 {[%clk 0:02:47]} 16. Rad1 {[%clk 0:02:20]}  Rfd8 {[%clk 0:02:45]} 17. dxc5 {[%clk 0:02:19]}  Qxc5 {[%clk 0:02:44]} 18. Nd4 {[%clk 0:02:11]}  h6 {[%clk 0:02:41]} 19. h3 {[%clk 0:02:11]}  Rd5 {[%clk 0:02:36]} 20. Nb3 {[%clk 0:02:08]}  Qd6 {[%clk 0:02:27]} 21. c4 {[%clk 0:02:03]}  Rxd1 {[%clk 0:02:24]} 22. Rxd1 {[%clk 0:02:04]}  Qb4 {[%clk 0:02:10]} 23. Qd3 {[%clk 0:02:02]}  a5 {[%clk 0:02:08]} 24. Rd2 {[%clk 0:01:46]}  a4 {[%clk 0:02:07]} 25. Nc1 {[%clk 0:01:36]}  Rc8 {[%clk 0:02:01]} 26. b3 {[%clk 0:01:36]}  axb3 {[%clk 0:01:59]} 27. axb3 {[%clk 0:01:33]}  b5 {[%clk 0:01:54]} 28. Rc2 {[%clk 0:01:33]}  Qe1+ {[%clk 0:01:39]} 29. Kh2 {[%clk 0:01:31]}  Qe5+ {[%clk 0:01:38]} 30. Kg1 {[%clk 0:01:22]}  bxc4 {[%clk 0:01:30]} 31. bxc4 {[%clk 0:01:17]}  Nh5 {[%clk 0:01:27]} 32. Ne2 {[%clk 0:01:14]}  Ra8 {[%clk 0:01:23]} 33. g4 {[%clk 0:01:08]}  Nf6 {[%clk 0:01:19]} 34. c5 {[%clk 0:01:02]}  Nd5 {[%clk 0:01:15]} 35. Qd4 {[%clk 0:00:53]}  Qxd4 {[%clk 0:00:36]} 36. Nxd4 {[%clk 0:00:53]}  Kf8 {[%clk 0:00:37]} 37. c6 {[%clk 0:00:52]}  Ke7 {[%clk 0:00:35]} 38. Nb5 {[%clk 0:00:51]}  Rc8 {[%clk 0:00:32]} 39. Na7 {[%clk 0:00:46]}  Rc7 {[%clk 0:00:22]} 40. Nb5 {[%clk 0:00:45]}  Nb4 {[%clk 0:00:20]} 41. Nxc7 {[%clk 0:00:39]}  Nxc2 {[%clk 0:00:20]} 42. Nb5 {[%clk 0:00:39]}  Nb4 {[%clk 0:00:18]} 43. c7 {[%clk 0:00:39]}  Kd7 {[%clk 0:00:18]} 44. Nd6 {[%clk 0:00:34]}  Kxc7 {[%clk 0:00:16]} 45. Nxf7 {[%clk 0:00:35]}  Kd7 {[%clk 0:00:15]} 46. Ne5+ {[%clk 0:00:35]}  Ke7 {[%clk 0:00:15]} 47. f4 {[%clk 0:00:34]}  Nd5 {[%clk 0:00:15]} 48. Nd3 {[%clk 0:00:33]}  Kf6 {[%clk 0:00:13]} 49. Kf2 {[%clk 0:00:33]}  g5 {[%clk 0:00:14]} 50. Kf3 {[%clk 0:00:24]}  gxf4 {[%clk 0:00:12]} 51. Nxf4 {[%clk 0:00:24]}  Nxf4 {[%clk 0:00:11]} 52. Kxf4 {[%clk 0:00:24]}  e5+ {[%clk 0:00:12]} 53. Ke4 {[%clk 0:00:24]}  Kg5 {[%clk 0:00:12]} 54. Kxe5 {[%clk 0:00:23]}  Kh4 {[%clk 0:00:13]} 55. Kf5 {[%clk 0:00:23]}  Kxh3 {[%clk 0:00:13]} 56. Kg6 {[%clk 0:00:21]}  Kh4 {[%clk 0:00:09]} 57. Kxh6 {[%clk 0:00:20]}  Kxg4 {[%clk 0:00:10]} 1/2-1/2


[Site "https://www.chess.com"]

[Event "Titled Tuesday Blitz August 22 Late 2023"]
[White "Harriott, Tyrell"]
[Black "Mikhaylova, Irina"]
[WhiteFideId "2086484"]
[BlackFideId "4109040"]
[WhiteElo "2407"]
[BlackElo "2292"]
[Result "1-0"]
[Round "11"]
[TimeControl "180+1"]
[Date "2023.08.22"]
[WhiteClock "0:00:05"]
[BlackClock "0:00:02"]
[Board "95"]

1. d4 {[%clk 0:02:55]}  Nf6 {[%clk 0:02:57]} 2. e3 {[%clk 0:02:48]}  g6 {[%clk 0:02:57]} 3. Bd3 {[%clk 0:02:45]}  Bg7 {[%clk 0:02:57]} 4. f4 {[%clk 0:02:45]}  O-O {[%clk 0:02:57]} 5. Nf3 {[%clk 0:02:45]}  c5 {[%clk 0:02:56]} 6. O-O {[%clk 0:02:44]}  d6 {[%clk 0:02:57]} 7. c3 {[%clk 0:02:42]}  Nc6 {[%clk 0:02:57]} 8. Bc2 {[%clk 0:02:42]}  e5 {[%clk 0:02:45]} 9. d5 {[%clk 0:02:41]}  Ne7 {[%clk 0:02:44]} 10. fxe5 {[%clk 0:02:41]}  dxe5 {[%clk 0:02:25]} 11. e4 {[%clk 0:02:39]}  Ne8 {[%clk 0:02:25]} 12. Na3 {[%clk 0:02:27]}  Nd6 {[%clk 0:02:24]} 13. c4 {[%clk 0:02:26]}  Bd7 {[%clk 0:02:17]} 14. Be3 {[%clk 0:02:21]}  b6 {[%clk 0:02:16]} 15. Qe2 {[%clk 0:02:18]}  Rc8 {[%clk 0:02:12]} 16. Nb5 {[%clk 0:02:11]}  Bxb5 {[%clk 0:01:42]} 17. cxb5 {[%clk 0:02:11]}  f5 {[%clk 0:01:42]} 18. Ng5 {[%clk 0:02:08]}  Qd7 {[%clk 0:01:24]} 19. Ne6 {[%clk 0:02:03]}  Qxb5 {[%clk 0:01:16]} 20. Qxb5 {[%clk 0:01:46]}  Nxb5 {[%clk 0:01:16]} 21. Nxf8 {[%clk 0:01:34]}  Rxf8 {[%clk 0:01:16]} 22. Bg5 {[%clk 0:01:31]}  Bf6 {[%clk 0:01:12]} 23. Bh6 {[%clk 0:01:27]}  Bg7 {[%clk 0:01:11]} 24. Bg5 {[%clk 0:00:57]}  Bf6 {[%clk 0:01:10]} 25. Bh6 {[%clk 0:00:53]}  Bg7 {[%clk 0:01:10]} 26. Bxg7 {[%clk 0:00:52]}  Kxg7 {[%clk 0:01:10]} 27. Ba4 {[%clk 0:00:49]}  Nd4 {[%clk 0:00:48]} 28. d6 {[%clk 0:00:46]}  Ng8 {[%clk 0:00:48]} 29. exf5 {[%clk 0:00:44]}  gxf5 {[%clk 0:00:45]} 30. Rae1 {[%clk 0:00:40]}  Kf6 {[%clk 0:00:40]} 31. h3 {[%clk 0:00:31]}  Rd8 {[%clk 0:00:35]} 32. d7 {[%clk 0:00:24]}  Ke6 {[%clk 0:00:31]} 33. g4 {[%clk 0:00:17]}  f4 {[%clk 0:00:30]} 34. Rxf4 {[%clk 0:00:16]}  Nf6 {[%clk 0:00:28]} 35. Bb3+ {[%clk 0:00:15]}  Nxb3 {[%clk 0:00:27]} 36. axb3 {[%clk 0:00:15]}  Rxd7 {[%clk 0:00:27]} 37. Rf5 {[%clk 0:00:15]}  Rd5 {[%clk 0:00:24]} 38. Ref1 {[%clk 0:00:13]}  Ne4 {[%clk 0:00:24]} 39. g5 {[%clk 0:00:12]}  Nd2 {[%clk 0:00:20]} 40. R1f2 {[%clk 0:00:10]}  e4 {[%clk 0:00:19]} 41. Rf6+ {[%clk 0:00:09]}  Ke5 {[%clk 0:00:19]} 42. R2f5+ {[%clk 0:00:09]}  Kd4 {[%clk 0:00:19]} 43. Rxd5+ {[%clk 0:00:09]}  Kxd5 {[%clk 0:00:19]} 44. Kf2 {[%clk 0:00:09]}  Nxb3 {[%clk 0:00:19]} 45. Ke3 {[%clk 0:00:08]}  Nd4 {[%clk 0:00:19]} 46. Rf7 {[%clk 0:00:07]}  Ke5 {[%clk 0:00:12]} 47. Rxh7 {[%clk 0:00:07]}  Nf5+ {[%clk 0:00:12]} 48. Kf2 {[%clk 0:00:07]}  e3+ {[%clk 0:00:12]} 49. Kf3 {[%clk 0:00:08]}  c4 {[%clk 0:00:09]} 50. Rf7 {[%clk 0:00:06]}  b5 {[%clk 0:00:09]} 51. g6 {[%clk 0:00:05]}  Nd4+ {[%clk 0:00:07]} 52. Kxe3 {[%clk 0:00:05]}  Ne6 {[%clk 0:00:07]} 53. g7 {[%clk 0:00:04]}  Nxg7 {[%clk 0:00:02]} 54. Rxg7 {[%clk 0:00:05]} 1-0


[Site "https://www.chess.com"]

[Event "Titled Tuesday Blitz August 22 Late 2023"]
[White "Arias Igual, Alejandro"]
[Black "Sanchez Castillo, Sarai Carolina"]
[WhiteFideId "2254905"]
[BlackFideId "3900754"]
[WhiteElo "2283"]
[BlackElo "2396"]
[Result "1-0"]
[Round "11"]
[TimeControl "180+1"]
[Date "2023.08.22"]
[WhiteClock "0:00:43"]
[BlackClock "0:00:19"]
[Board "96"]

1. e4 {[%clk 0:03:00]}  e6 {[%clk 0:02:59]} 2. d4 {[%clk 0:03:00]}  d5 {[%clk 0:02:59]} 3. Bd3 {[%clk 0:03:01]}  Nf6 {[%clk 0:02:58]} 4. e5 {[%clk 0:03:00]}  Nfd7 {[%clk 0:02:59]} 5. f4 {[%clk 0:03:01]}  c5 {[%clk 0:02:59]} 6. c3 {[%clk 0:03:01]}  Nc6 {[%clk 0:03:00]} 7. Nf3 {[%clk 0:03:01]}  f6 {[%clk 0:03:00]} 8. O-O {[%clk 0:02:59]}  Qb6 {[%clk 0:03:00]} 9. Kh1 {[%clk 0:02:58]}  Be7 {[%clk 0:02:49]} 10. a3 {[%clk 0:02:57]}  c4 {[%clk 0:02:48]} 11. Bc2 {[%clk 0:02:56]}  Nf8 {[%clk 0:02:48]} 12. Ra2 {[%clk 0:02:35]}  a5 {[%clk 0:02:45]} 13. Be3 {[%clk 0:02:33]}  Bd7 {[%clk 0:02:46]} 14. Nbd2 {[%clk 0:02:32]}  Nd8 {[%clk 0:02:42]} 15. exf6 {[%clk 0:02:25]}  Bxf6 {[%clk 0:02:34]} 16. Ne5 {[%clk 0:02:25]}  g6 {[%clk 0:02:22]} 17. Ndf3 {[%clk 0:02:18]}  Nc6 {[%clk 0:02:13]} 18. Bg1 {[%clk 0:02:02]}  Ne7 {[%clk 0:02:02]} 19. Re1 {[%clk 0:01:58]}  O-O-O {[%clk 0:01:59]} 20. Nf7 {[%clk 0:01:57]}  Rg8 {[%clk 0:02:00]} 21. Nxd8 {[%clk 0:01:56]}  Qxd8 {[%clk 0:02:00]} 22. Ne5 {[%clk 0:01:54]}  Be8 {[%clk 0:01:59]} 23. Ba4 {[%clk 0:01:51]}  Nf5 {[%clk 0:01:55]} 24. b3 {[%clk 0:01:40]}  b5 {[%clk 0:01:55]} 25. bxc4 {[%clk 0:01:36]}  bxa4 {[%clk 0:01:55]} 26. c5 {[%clk 0:01:35]}  Bxe5 {[%clk 0:01:48]} 27. dxe5 {[%clk 0:01:34]}  Qh4 {[%clk 0:01:47]} 28. Qd3 {[%clk 0:01:09]}  Qxe1 {[%clk 0:01:38]} 29. Qa6+ {[%clk 0:01:08]}  Kd8 {[%clk 0:01:37]} 30. Rb2 {[%clk 0:00:56]}  Nd7 {[%clk 0:01:15]} 31. c6 {[%clk 0:00:52]}  Qxc3 {[%clk 0:00:44]} 32. cxd7 {[%clk 0:00:49]}  Bxd7 {[%clk 0:00:37]} 33. Rb8+ {[%clk 0:00:47]}  Bc8 {[%clk 0:00:33]} 34. Qxe6 {[%clk 0:00:46]}  Rg7 {[%clk 0:00:26]} 35. Bb6+ {[%clk 0:00:43]}  Rc7 {[%clk 0:00:19]} 36. Rxc8# {[%clk 0:00:43]} 1-0


[Site "https://www.chess.com"]

[Event "Titled Tuesday Blitz August 22 Late 2023"]
[White "Melikhov, Evgeny V."]
[Black "Florianovitz, Derlei Alex"]
[WhiteFideId "4122046"]
[BlackFideId "2114178"]
[WhiteElo "2387"]
[BlackElo "2229"]
[Result "1-0"]
[Round "11"]
[TimeControl "180+1"]
[Date "2023.08.22"]
[WhiteClock "0:00:19"]
[BlackClock "0:00:00"]
[Board "97"]

1. d4 {[%clk 0:03:00]}  Nf6 {[%clk 0:02:59]} 2. c4 {[%clk 0:03:00]}  e6 {[%clk 0:02:58]} 3. Nc3 {[%clk 0:03:01]}  Bb4 {[%clk 0:02:57]} 4. Qc2 {[%clk 0:03:01]}  c5 {[%clk 0:02:57]} 5. dxc5 {[%clk 0:03:01]}  Bxc3+ {[%clk 0:02:55]} 6. Qxc3 {[%clk 0:03:01]}  O-O {[%clk 0:02:56]} 7. Nf3 {[%clk 0:03:00]}  Ne4 {[%clk 0:02:52]} 8. Qc2 {[%clk 0:02:59]}  Nxc5 {[%clk 0:02:52]} 9. b3 {[%clk 0:02:57]}  Nc6 {[%clk 0:02:49]} 10. Bb2 {[%clk 0:02:57]}  b6 {[%clk 0:02:37]} 11. e3 {[%clk 0:02:56]}  h6 {[%clk 0:02:36]} 12. O-O-O {[%clk 0:02:55]}  a5 {[%clk 0:02:31]} 13. h4 {[%clk 0:02:37]}  a4 {[%clk 0:02:29]} 14. Qc3 {[%clk 0:02:31]}  f6 {[%clk 0:02:21]} 15. b4 {[%clk 0:02:19]}  Ne4 {[%clk 0:02:20]} 16. Qc2 {[%clk 0:02:18]}  a3 {[%clk 0:02:11]} 17. Qxe4 {[%clk 0:02:17]}  axb2+ {[%clk 0:02:10]} 18. Kxb2 {[%clk 0:02:17]}  Bb7 {[%clk 0:02:07]} 19. a3 {[%clk 0:02:12]}  Qe7 {[%clk 0:02:01]} 20. Qd3 {[%clk 0:02:02]}  Rfc8 {[%clk 0:01:45]} 21. Qd6 {[%clk 0:02:01]}  Qf7 {[%clk 0:01:40]} 22. Qxd7 {[%clk 0:01:57]}  Qf8 {[%clk 0:01:37]} 23. Qxb7 {[%clk 0:01:53]}  Nxb4 {[%clk 0:01:37]} 24. Rd7 {[%clk 0:01:41]}  Nc6 {[%clk 0:01:23]} 25. c5 {[%clk 0:01:11]}  Ne5 {[%clk 0:00:55]} 26. Nxe5 {[%clk 0:01:04]}  fxe5 {[%clk 0:00:54]} 27. Be2 {[%clk 0:00:59]}  bxc5 {[%clk 0:00:51]} 28. Kc2 {[%clk 0:00:54]}  c4 {[%clk 0:00:48]} 29. Rh3 {[%clk 0:00:31]}  Kh8 {[%clk 0:00:47]} 30. Rg3 {[%clk 0:00:30]}  Rxa3 {[%clk 0:00:35]} 31. Rgxg7 {[%clk 0:00:29]}  Ra2+ {[%clk 0:00:35]} 32. Kd1 {[%clk 0:00:23]}  Ra1+ {[%clk 0:00:21]} 33. Kc2 {[%clk 0:00:23]}  Ra2+ {[%clk 0:00:22]} 34. Kb1 {[%clk 0:00:23]}  Ra1+ {[%clk 0:00:02]} 35. Kxa1 {[%clk 0:00:19]}  Qa3+ {[%clk 0:00:00]} 36. Kb1 {[%clk 0:00:19]} 1-0


[Site "https://www.chess.com"]

[Event "Titled Tuesday Blitz August 22 Late 2023"]
[White "Kula, Robert"]
[Black "Haitin, Ilja"]
[WhiteFideId "1101218"]
[BlackFideId "4501764"]
[WhiteElo "2166"]
[BlackElo "2367"]
[Result "1-0"]
[Round "11"]
[TimeControl "180+1"]
[Date "2023.08.22"]
[WhiteClock "0:00:09"]
[BlackClock "0:00:04"]
[Board "98"]

1. e4 {[%clk 0:02:54]}  e6 {[%clk 0:02:59]} 2. d4 {[%clk 0:02:54]}  d5 {[%clk 0:02:59]} 3. Nc3 {[%clk 0:02:54]}  Be7 {[%clk 0:02:59]} 4. Nf3 {[%clk 0:02:53]}  Nf6 {[%clk 0:02:58]} 5. e5 {[%clk 0:02:51]}  Nfd7 {[%clk 0:02:58]} 6. Ne2 {[%clk 0:02:23]}  c5 {[%clk 0:02:57]} 7. c3 {[%clk 0:02:23]}  Nc6 {[%clk 0:02:57]} 8. a3 {[%clk 0:02:18]}  O-O {[%clk 0:02:57]} 9. Be3 {[%clk 0:02:13]}  f6 {[%clk 0:02:57]} 10. exf6 {[%clk 0:02:12]}  Nxf6 {[%clk 0:02:51]} 11. dxc5 {[%clk 0:02:11]}  e5 {[%clk 0:02:51]} 12. b4 {[%clk 0:02:04]}  e4 {[%clk 0:02:50]} 13. Nfd4 {[%clk 0:02:03]}  Ng4 {[%clk 0:02:50]} 14. Qd2 {[%clk 0:01:49]}  Nxe3 {[%clk 0:02:44]} 15. fxe3 {[%clk 0:01:49]}  Bg5 {[%clk 0:02:38]} 16. O-O-O {[%clk 0:01:28]}  Ne5 {[%clk 0:02:35]} 17. Nf4 {[%clk 0:01:18]}  Bg4 {[%clk 0:02:30]} 18. Re1 {[%clk 0:01:12]}  a5 {[%clk 0:02:29]} 19. Nc2 {[%clk 0:01:05]}  axb4 {[%clk 0:02:28]} 20. cxb4 {[%clk 0:01:04]}  Bxf4 {[%clk 0:01:40]} 21. exf4 {[%clk 0:01:03]}  Nc4 {[%clk 0:01:41]} 22. Bxc4 {[%clk 0:00:58]}  dxc4 {[%clk 0:01:41]} 23. h3 {[%clk 0:00:45]}  Bd7 {[%clk 0:01:30]} 24. Rxe4 {[%clk 0:00:38]}  c3 {[%clk 0:01:24]} 25. Qxc3 {[%clk 0:00:35]}  Bf5 {[%clk 0:01:20]} 26. Rd4 {[%clk 0:00:29]}  Qh4 {[%clk 0:01:17]} 27. g3 {[%clk 0:00:26]}  Qh6 {[%clk 0:01:06]} 28. Ne3 {[%clk 0:00:24]}  Bc8 {[%clk 0:01:01]} 29. Kb2 {[%clk 0:00:22]}  Kh8 {[%clk 0:01:01]} 30. Rd6 {[%clk 0:00:20]}  Qh5 {[%clk 0:00:58]} 31. g4 {[%clk 0:00:19]}  Qh4 {[%clk 0:00:49]} 32. f5 {[%clk 0:00:19]}  Qf2+ {[%clk 0:00:46]} 33. Nc2 {[%clk 0:00:17]}  b6 {[%clk 0:00:22]} 34. cxb6 {[%clk 0:00:12]}  Ba6 {[%clk 0:00:20]} 35. Rhd1 {[%clk 0:00:11]}  Rac8 {[%clk 0:00:16]} 36. Qb3 {[%clk 0:00:07]}  Bc4 {[%clk 0:00:13]} 37. Qc3 {[%clk 0:00:04]}  Bg8 {[%clk 0:00:12]} 38. Rc6 {[%clk 0:00:03]}  Rb8 {[%clk 0:00:09]} 39. Rc7 {[%clk 0:00:02]}  Rf7 {[%clk 0:00:04]} 40. Rxf7 {[%clk 0:00:02]}  Bxf7 {[%clk 0:00:05]} 41. b7 {[%clk 0:00:02]}  Bg8 {[%clk 0:00:04]} 42. Qc8 {[%clk 0:00:02]}  Qf4 {[%clk 0:00:03]} 43. Rd8 {[%clk 0:00:02]}  Rxc8 {[%clk 0:00:03]} 44. bxc8=Q {[%clk 0:00:02]}  Qe5+ {[%clk 0:00:04]} 45. Kb1 {[%clk 0:00:01]}  Qe1+ {[%clk 0:00:02]} 46. Nxe1 {[%clk 0:00:01]}  h5 {[%clk 0:00:01]} 47. Rxg8+ {[%clk 0:00:02]}  Kh7 {[%clk 0:00:02]} 48. Nf3 {[%clk 0:00:02]}  Kh6 {[%clk 0:00:03]} 49. Nh4 {[%clk 0:00:03]}  Kg5 {[%clk 0:00:04]} 50. Qe6 {[%clk 0:00:03]}  hxg4 {[%clk 0:00:04]} 51. Ng6 {[%clk 0:00:04]}  gxh3 {[%clk 0:00:03]} 52. Rxg7 {[%clk 0:00:05]}  Kg4 {[%clk 0:00:04]} 53. Rh7 {[%clk 0:00:03]}  Kg3 {[%clk 0:00:05]} 54. Rxh3+ {[%clk 0:00:04]}  Kg2 {[%clk 0:00:05]} 55. f6 {[%clk 0:00:05]}  Kg1 {[%clk 0:00:05]} 56. f7 {[%clk 0:00:06]}  Kg2 {[%clk 0:00:05]} 57. f8=Q {[%clk 0:00:07]}  Kg1 {[%clk 0:00:05]} 58. Qef7 {[%clk 0:00:08]}  Kg2 {[%clk 0:00:04]} 59. Q7g8 {[%clk 0:00:08]}  Kg1 {[%clk 0:00:04]} 60. Ne7# {[%clk 0:00:09]} 1-0


[Site "https://www.chess.com"]

[Event "Titled Tuesday Blitz August 22 Late 2023"]
[White "Reprintsev, Alexander"]
[Black "Saucey, Michel"]
[WhiteFideId "14100541"]
[BlackFideId "601845"]
[WhiteElo "2465"]
[BlackElo "2267"]
[Result "1-0"]
[Round "11"]
[TimeControl "180+1"]
[Date "2023.08.22"]
[WhiteClock "0:00:04"]
[BlackClock "0:00:00"]
[Board "101"]

1. e4 {[%clk 0:02:55]}  c5 {[%clk 0:02:59]} 2. b3 {[%clk 0:02:55]}  Nc6 {[%clk 0:02:53]} 3. Bb2 {[%clk 0:02:53]}  e5 {[%clk 0:02:44]} 4. f4 {[%clk 0:02:52]}  d6 {[%clk 0:02:43]} 5. Bb5 {[%clk 0:02:51]}  f6 {[%clk 0:02:36]} 6. Qf3 {[%clk 0:02:48]}  Ne7 {[%clk 0:02:34]} 7. Ne2 {[%clk 0:02:46]}  a6 {[%clk 0:02:32]} 8. Bxc6+ {[%clk 0:02:42]}  Nxc6 {[%clk 0:02:31]} 9. Nbc3 {[%clk 0:02:37]}  Be6 {[%clk 0:02:26]} 10. O-O-O {[%clk 0:02:35]}  Qa5 {[%clk 0:02:21]} 11. Kb1 {[%clk 0:02:34]}  Nd4 {[%clk 0:02:17]} 12. Nxd4 {[%clk 0:02:25]}  cxd4 {[%clk 0:02:17]} 13. Nd5 {[%clk 0:02:25]}  Bxd5 {[%clk 0:02:06]} 14. exd5 {[%clk 0:02:24]}  O-O-O {[%clk 0:02:03]} 15. c4 {[%clk 0:02:24]}  dxc3 {[%clk 0:01:53]} 16. dxc3 {[%clk 0:02:22]}  Kb8 {[%clk 0:01:51]} 17. c4 {[%clk 0:02:19]}  Be7 {[%clk 0:01:34]} 18. g4 {[%clk 0:01:49]}  Ka8 {[%clk 0:01:25]} 19. g5 {[%clk 0:01:11]}  Rc8 {[%clk 0:01:23]} 20. h4 {[%clk 0:01:08]}  b5 {[%clk 0:01:21]} 21. cxb5 {[%clk 0:01:04]}  axb5 {[%clk 0:01:20]} 22. h5 {[%clk 0:01:03]}  Rc5 {[%clk 0:01:07]} 23. h6 {[%clk 0:01:02]}  gxh6 {[%clk 0:00:52]} 24. gxf6 {[%clk 0:01:00]}  Bxf6 {[%clk 0:00:51]} 25. fxe5 {[%clk 0:00:59]}  Bxe5 {[%clk 0:00:50]} 26. Bxe5 {[%clk 0:00:59]}  dxe5 {[%clk 0:00:50]} 27. d6+ {[%clk 0:00:59]}  Ka7 {[%clk 0:00:48]} 28. Qf7+ {[%clk 0:00:57]}  Ka6 {[%clk 0:00:47]} 29. d7 {[%clk 0:00:51]}  Qc3 {[%clk 0:00:42]} 30. Rxh6+ {[%clk 0:00:49]}  Ka5 {[%clk 0:00:39]} 31. Qf2 {[%clk 0:00:34]}  Rd8 {[%clk 0:00:24]} 32. Rxh7 {[%clk 0:00:29]}  e4 {[%clk 0:00:19]} 33. Re7 {[%clk 0:00:25]}  b4 {[%clk 0:00:05]} 34. Qd2 {[%clk 0:00:11]}  e3 {[%clk 0:00:04]} 35. Qxc3 {[%clk 0:00:10]}  bxc3 {[%clk 0:00:04]} 36. Kc2 {[%clk 0:00:10]}  e2 {[%clk 0:00:04]} 37. Rxe2 {[%clk 0:00:08]}  Rc7 {[%clk 0:00:01]} 38. Re7 {[%clk 0:00:07]}  Kb4 {[%clk 0:00:01]} 39. Rd4+ {[%clk 0:00:07]}  Kb5 {[%clk 0:00:01]} 40. Re5+ {[%clk 0:00:04]}  Kb6 {[%clk 0:00:00]} 41. Red5 {[%clk 0:00:04]} 1-0


[Site "https://www.chess.com"]

[Event "Titled Tuesday Blitz August 22 Late 2023"]
[White "KSho99"]
[Black "JerMorGurgeh"]
[WhiteElo "2234"]
[BlackElo "2387"]
[Result "1-0"]
[Round "11"]
[TimeControl "180+1"]
[Date "2023.08.22"]
[WhiteClock "0:00:18"]
[BlackClock "0:00:15"]
[Board "102"]

1. Nf3 {[%clk 0:03:00]}  Nf6 {[%clk 0:02:59]} 2. g3 {[%clk 0:03:00]}  d5 {[%clk 0:02:55]} 3. Bg2 {[%clk 0:02:59]}  c6 {[%clk 0:02:55]} 4. O-O {[%clk 0:02:59]}  Bg4 {[%clk 0:02:54]} 5. h3 {[%clk 0:02:48]}  Bh5 {[%clk 0:02:46]} 6. c4 {[%clk 0:02:46]}  e6 {[%clk 0:02:34]} 7. d3 {[%clk 0:02:36]}  dxc4 {[%clk 0:02:27]} 8. dxc4 {[%clk 0:02:34]}  Qxd1 {[%clk 0:02:21]} 9. Rxd1 {[%clk 0:02:35]}  a5 {[%clk 0:02:17]} 10. Nc3 {[%clk 0:02:27]}  Na6 {[%clk 0:02:10]} 11. Ne5 {[%clk 0:02:09]}  Bb4 {[%clk 0:01:49]} 12. Nxc6 {[%clk 0:01:50]}  Bxc3 {[%clk 0:01:44]} 13. bxc3 {[%clk 0:01:46]}  Bxe2 {[%clk 0:01:18]} 14. Rd2 {[%clk 0:01:30]}  Bxc4 {[%clk 0:01:14]} 15. Ba3 {[%clk 0:01:28]}  Bd5 {[%clk 0:01:07]} 16. Nxa5 {[%clk 0:00:34]}  Nc7 {[%clk 0:00:41]} 17. Bb4 {[%clk 0:00:33]}  b6 {[%clk 0:00:31]} 18. Nb7 {[%clk 0:00:22]}  Bxg2 {[%clk 0:00:21]} 19. Nd6+ {[%clk 0:00:20]}  Kf8 {[%clk 0:00:19]} 20. Nf5+ {[%clk 0:00:18]}  Ke8 {[%clk 0:00:15]} 21. Nxg7# {[%clk 0:00:18]} 1-0


[Site "https://www.chess.com"]